Cogmind - Beta 16 --- EXPLORER MODE // 2025.12.22 @ 14:29:08 Player: K.K.Y. Result: Destroyed by KR-L7Z(R) with Subdweller Laser Performance ------------- Evolutions (0) 0 Regions Visited (3) 600 Robots Destroyed (40) 200 Value Destroyed (858) 858 Prototype IDs (19) 380 Alien Tech Used (0) 0 Bonus (90) 90 TOTAL SCORE: 2128 Bonus ------- Follower Combat Kills 90 Cogmind --------- Core Integrity 0/250 Matter 300/300 Energy 100/100 System Corruption 0% Temperature Cool (6) Movement Core (350) Ox6 Location -10/Subcaves Parts ------- > --- POWER (1) -------- (None) > --- PROPULSION (2) --- (None) > --- UTILITY (3) ------ Medium Storage Unit Structural Scanner Sensor Array > --- WEAPON (2) ------- Heavy Riot Gun Heavy Battle Rifle > --- INVENTORY (10) --- High-capacity Storage Unit Machine Analyzer Improved Terrain Scanner Light Armor Plating Light Armor Plating Makeshift Light Armor Plating Makeshift System Restoration Module Powered Cannon Peak State ------------ > --- POWER ------------ Light Nuclear Core > --- PROPULSION ------- Light Treads > --- UTILITY ---------- Medium Storage Unit Structural Scanner ECM Suite > --- WEAPON ----------- Particle Gun Heavy Battle Rifle > --- INVENTORY -------- High-capacity Storage Unit Machine Analyzer Sensor Array Improved Terrain Scanner Light Armor Plating Light Armor Plating Makeshift Light Armor Plating Makeshift System Restoration Module Medium Laser Assault Rifle [Rating: 15] Favorites ----------- Power Ion Engine Engine Ion Engine Power Core Light Nuclear Core Propulsion Light Treads Treads Light Treads Utility Medium Storage Unit Device Structural Scanner Storage Medium Storage Unit Protection Light Armor Plating Weapon Particle Gun Energy Gun Particle Gun Ballistic Gun Heavy Battle Rifle Special Weapon Mining Laser Build | -11 -10 -10 -10 ------- Run | Yrd Mat Min Sub Slots Evolved 1 | . 1 . . Power . | . . . . Propulsion . | . . . . Utility 1 | . 1 . . Weapon . | . . . . Parts Attached 22 | 7 6 2 7 Power 6 | 1 2 . 3 Engine 5 | 1 2 . 2 Core 1 | . . . 1 Reactor . | . . . . Propulsion 5 | 2 1 1 1 Treads 5 | 2 1 1 1 Leg . | . . . . Wheel . | . . . . Hover . | . . . . Flight . | . . . . Utility 5 | 3 1 . 1 Device 3 | 1 1 . 1 Storage 1 | 1 . . . Processor . | . . . . Hackware . | . . . . Protection 1 | 1 . . . Artifact . | . . . . Weapon 6 | 1 2 1 2 Energy Gun 4 | 1 1 1 1 Energy Cannon . | . . . . Ballistic Gun 1 | . . . 1 Ballistic Cannon . | . . . . Launcher . | . . . . Special Weapon 1 | . 1 . . Impact Weapon . | . . . . Slashing Weapon . | . . . . Piercing Weapon . | . . . . Special Melee Weapon . | . . . . Unidentified Prototypes . | . . . . Parts Lost 6 | . . . 6 Power 2 | . . . 2 Propulsion 2 | . . . 2 Utility 1 | . . . 1 Weapon 1 | . . . 1 Highest Loss Streak 2 | . . . 2 To Critical Strikes . | . . . . Average Backups 7 | 3 4 6 9 Power . | . . . . Propulsion . | . . . . Utility 6 | 2 3 4 7 Weapon 1 | . 1 1 1 Tool/Special . | . . . . Unused Backups 8 | . . . 8 Power . | . . . . Propulsion . | . . . . Utility 6 | . . . 6 Weapon 2 | . . . 2 Tool/Special . | . . . . Average Slot Usage (%) 84 | . 95 100 78 Engine 6 | . 12 12 3 Core 2 | . . . 4 Treads 14 | . 24 25 8 Device 24 | . 25 25 24 Storage 12 | . 12 12 12 Energy Gun 16 | . 20 25 12 Ballistic Gun 6 | . . . 9 Special Weapon 1 | . . . 1 Peak Build Rating 15 | 6 8 10 15 Average Rating 11 | 4 7 9 12 On Entrance 6 | . 6 8 10 Avg Prop Armor Cover (%) . | . . . . Naked Turns . | . . . . Heaviest Build 25 | 18 22 23 25 Greatest Support 40 | 40 40 40 40 Greatest Overweight (x) 8 | 5 6 . 8 Average Overweight (x) 1 | . . . 2 Largest Inventory Capacity 10 | 10 10 10 10 Average Capacity 9 | 9 10 10 10 Most Carried 10 | 7 7 8 10 Average Carried 7 | 3 4 6 9 Final Capacity 10 | 10 10 10 10 Final Carried 9 | 5 5 7 9 Class Distribution -------------------- 100% | Hacker-Mutant Dominant Class ---------------- Hacker-Mutant | -10/Materials Hacker-Mutant | -10/Mines Hacker-Mutant | -10/Subcaves Resources | -11 -10 -10 -10 ----------- Run | Yrd Mat Min Sub Matter Collected 750 | 189 181 20 360 Remotely . | . . . . Salvage Created 1186 | 132 304 143 607 Parts 68 | 8 16 9 35 Haulers Intercepted 2 | . 2 . . Recyclers Shooed 1 | . 1 . . Parts Field Recycled . | . . . . Retrieved Matter . | . . . . Parts Self-Destructed . | . . . . Prevented . | . . . . Parts Restored . | . . . . Kills | -11 -10 -10 -10 ------- Run | Yrd Mat Min Sub Combat Hostiles Destroyed 27 | . 6 4 17 Guns 26 | . 6 3 17 Classes Destroyed 10 | 2 4 1 3 Worker 1 | . 1 . . Tunneler 4 | 3 . 1 . Hauler 2 | . 2 . . Recycler 1 | 1 . . . Turret 2 | . . . 2 Watcher 3 | . 3 . . Swarmer 13 | . 6 2 5 Grunt 2 | . . 2 . Sentry 2 | . . . 2 Subdweller 10 | . . . 10 Best Kill Streak 3 | 3 3 2 3 Combat Bots Only 3 | . 2 2 3 Max Kills in Single Turn 2 | 1 2 1 1 Gunslinging 1 | . 1 . . Exploded . | . . . . Melee . | . . . . Uniques/NPCs Destroyed . | . . . . Combat | -11 -10 -10 -10 -------- Run | Yrd Mat Min Sub Hostile Shots Fired 187 | . 22 13 152 Missed 64 | . 2 4 58 Hits 123 | . 20 9 94 Projectile 123 | . 20 9 94 Critical Strikes 2 | . . . 2 Damage Taken 1110 | . 116 69 925 Core 254 | . 41 13 200 Absorbed by Shields . | . . . . Ignored by Resistances 654 | . 79 44 531 Core Remaining (%) 100 | 100 . . . Volleys Fired 193 | 12 32 8 141 Largest 2 | 1 2 2 2 Hottest 115 | 50 100 115 115 Shots Fired 236 | 12 46 16 162 Gun 210 | 12 46 16 136 Cannon . | . . . . Launcher . | . . . . Special 26 | . . . 26 Kinetic 85 | . . . 85 Thermal 140 | 12 46 16 66 Explosive . | . . . . Electromagnetic 11 | . . . 11 Robot Hit Streak 20 | 8 20 11 20 Robot Miss Streak 2 | 1 2 1 1 Penetration Max . | . . . . Secondary Targets 2 | . 1 . 1 Max Gunslinging Chain 1 | . 1 . 1 Shots Hit Robots 144 | 11 36 12 85 Core Hits 61 | 5 15 7 34 Critical Kills . | . . . . Critical Parts Destroyed 1 | . . . 1 Critical Strikes 16 | 3 5 2 6 Burn 15 | 3 5 2 5 Destroy 1 | . . . 1 Melee Attacks . | . . . . Impact . | . . . . Slashing . | . . . . Piercing . | . . . . Sneak Attacks . | . . . . Combat Hostiles . | . . . . Follow-up Attacks . | . . . . Damage Inflicted 2253 | 149 464 152 1488 Guns 2253 | 149 464 152 1488 Cannons . | . . . . Explosions . | . . . . Melee . | . . . . Ramming . | . . . . Kinetic 969 | . . . 969 Thermal 1143 | 149 464 152 378 Explosive . | . . . . Electromagnetic 141 | . . . 141 Impact . | . . . . Slashing . | . . . . Piercing . | . . . . Highest Corruption . | . . . . Average Corruption . | . . . . Corruption Purged . | . . . . Corruption Blocked . | . . . . Overload Shots . | . . . . Overflow Damage . | . . . . Projectiles . | . . . . Explosions . | . . . . Melee . | . . . . Knockbacks . | . . . . Impact . | . . . . Kinetic . | . . . . Secondary . | . . . . Self-Inflicted Damage . | . . . . Shots . | . . . . Rammed . | . . . . Targets Rammed . | . . . . Kicked . | . . . . Crushed . | . . . . Highest Temperature 243 | 50 156 243 13 Average Temperature 47 | 18 40 94 6 Received Heat Transfer 384 | . . 54 330 Effects 3 | . . 3 . Interference 3 | . . 3 . Siege Activations . | . . . . Martial Activations . | . . . . Shielding Activations . | . . . . Robots Disrupted . | . . . . Combat Hostiles . | . . . . Robots Corrupted . | . . . . Combat Hostiles . | . . . . Parts Fried 1 | . . . 1 Impact Corruptions . | . . . . Robots Melted 2 | . . 1 1 Combat Hostiles 1 | . . 1 . Parts Melted 9 | . 3 3 3 Heat Transferred 4440 | 666 1739 592 1443 Parts Sabotaged . | . . . . Parts Stolen . | . . . . Parts Stripped . | . . . . Power Chain Reactions . | . . . . Alert | -11 -10 -10 -10 ------- Run | Yrd Mat Min Sub Maximum Alert Level . | . . . . Low Security (%) 100 | 100 100 100 . Level 1 . | . . . . Level 2 . | . . . . Level 3 . | . . . . Level 4 . | . . . . Level 5 . | . . . . High Security . | . . . . Max Security . | . . . . Peak Influence 54 | 5 50 54 . Initial . | . . . . Average 3 | 1 4 2 . Influence Increases 524 | 20 204 109 191 Destroy 0b10 Robot/C 380 | . 120 80 180 Destroy 0b10 Robot/NC 55 | 20 30 5 . Destroy Leader 70 | . 40 20 10 Allied During Kill 1 | . . . 1 Successful Hack 14 | . 14 . . Disable Machine 4 | . . 4 . Influence Decreases 524 | 20 204 109 191 Time Decay 514 | 20 204 109 181 Lost Part 10 | . . . 10 Squads Dispatched . | . . . . Investigation . | . . . . Extermination . | . . . . Reinforcement . | . . . . Assault . | . . . . Garrison . | . . . . Intercept . | . . . . Searches Triggered . | . . . . Construction Impeded . | . . . . Haulers Reinforced . | . . . . Active Scanning Responses . | . . . . Cargo Convoy Interrupts . | . . . . Stealth | -11 -10 -10 -10 --------- Run | Yrd Mat Min Sub Distress Signals . | . . . . Communications Jammed . | . . . . Distress Signals . | . . . . Times Spotted 80 | . 10 4 66 Peak Tracking Total 6 | . 2 2 6 Tactical Retreats 4 | . . . 4 ECM-based Alert Blocks 79 | . . . 79 Traps | -11 -10 -10 -10 ------- Run | Yrd Mat Min Sub Traps Triggered 8 | . 4 . 4 Indirectly . | . . . . Trap Hack Attempts . | . . . . Triggered . | . . . . Disarmed . | . . . . Reprogrammed . | . . . . Reused . | . . . . Traps Extracted . | . . . . Installed . | . . . . Triggered . | . . . . Machines | -11 -10 -10 -10 ---------- Run | Yrd Mat Min Sub Machines Disabled 2 | . . 1 1 Max in Single Turn 1 | . . 1 1 Machines Repaired . | . . . . Machines Dismantled . | . . . . Machines Sabotaged . | . . . . Overloaded Fab Kills . | . . . . Hacking | -11 -10 -10 -10 --------- Run | Yrd Mat Min Sub Machines Accessed 10 | . 8 . 2 Terminals 8 | . 8 . . Fabricators . | . . . . Repair Stations . | . . . . Recycling Units . | . . . . Scanalyzers . | . . . . Garrison Access . | . . . . Total Hacks 45 | . 41 . 4 Successful 34 | . 30 . 4 Failed 11 | . 11 . . Catastrophic . | . . . . Database Lockouts . | . . . . Manual 41 | . 41 . . Terminals 41 | . 41 . . Fabricators . | . . . . Repair Stations . | . . . . Recycling Units . | . . . . Scanalyzers . | . . . . Garrison Access . | . . . . Terminal Hacks 27 | . 23 . 4 Record 3 | . . . 3 Prototype ID Bank 23 | . 23 . . Proto ID Catalog 1 | . . . 1 Fabricator Hacks . | . . . . Repair Station Hacks . | . . . . Recycling Unit Hacks . | . . . . Scanalyzer . | . . . . Garrison Access Hacks . | . . . . Unauthorized Hacks 7 | . 7 . . Terminals 7 | . 7 . . Botnet 7 | . 7 . . Fabricators . | . . . . Repair Stations . | . . . . Recycling Units . | . . . . Scanalyzers . | . . . . Garrison Access . | . . . . Data Cores Recovered . | . . . . Used . | . . . . Hacking Detections 8 | . 8 . . Full Trace Events 1 | . 1 . . Feedback Events . | . . . . Feedback Blocked . | . . . . Robot Schematics Acquired . | . . . . Robots Built . | . . . . Authchips . | . . . . Time . | . . . . Total Robot Build Rating . | . . . . Part Schematics Acquired . | . . . . Parts Built . | . . . . Authchips . | . . . . Time . | . . . . Total Part Build Rating . | . . . . Part Studies Acquired . | . . . . Parts Repaired . | . . . . Time . | . . . . Parts Recycled . | . . . . Recycled Matter . | . . . . Retrieved Matter . | . . . . Retrieved Components . | . . . . Parts Scanalyzed . | . . . . Part Schematics Acquired . | . . . . Parts Damaged . | . . . . Bothacking | -11 -10 -10 -10 ------------ Run | Yrd Mat Min Sub Used RIF Installer . | . . . . Robots Hacked . | . . . . Non-combat . | . . . . Combat . | . . . . Robot Hacks Applied . | . . . . Relay Couplers Released . | . . . . Fabnet Peak Effective % . | . . . . Robots Rewired . | . . . . Allies Hacked . | . . . . Hacks Repelled . | . . . . Allies | -11 -10 -10 -10 -------- Run | Yrd Mat Min Sub Total Allies 3 | . . 3 . Largest Group 3 | . . 3 3 Highest-Rated Group 40 | . . 40 40 Highest-Rated Ally 16 | . . 16 16 Total Orders . | . . . . Ally Attacks 20 | . . . 20 Total Damage 272 | . . . 272 Kills 3 | . . . 3 Allies Corrupted . | . . . . Allies Melted . | . . . . Intel | -11 -10 -10 -10 ------- Run | Yrd Mat Min Sub Active Infowar (turns) 7682 | 101 1361 1139 5081 Sensors 244 | . . . 244 Structural 7644 | 101 1361 1101 5081 ECM 5329 | . 1361 1139 2829 Robot Analysis Total . | . . . . Derelict Logs Recovered 4 | . . 2 2 Drone Launches . | . . . . Drone Recoveries . | . . . . Exploration | -11 -10 -10 -10 ------------- Run | Yrd Mat Min Sub Turns Passed 7724 | 143 1361 1139 5081 Spaces Moved 3262 | 77 761 649 1775 Core 702 | 31 3 . 668 Treads 2560 | 46 758 649 1107 Legs . | . . . . Wheels . | . . . . Hover . | . . . . Flight . | . . . . Fastest Speed 50 | 50 160 160 160 Average Speed 215 | 134 160 160 262 Slowest Speed 450 | 300 350 160 450 Overloaded Moves . | . . . . Propulsion Burnouts . | . . . . Robots Hopped . | . . . . Potential Cave-ins . | . . . . Cave-ins Triggered . | . . . . Exploration Rate (%) 75 | 6 99 99 96 Regions Visited 3 Branch Regions 2 Pre-discovered Areas 2 | . . 1 1 Known Exits Taken 3 | 1 1 1 . Unknown Exits Taken . | . . . . Scrap Searched 11 | . . 1 10 Spaces Dug 8 | . . . 8 Terrain Destroyed 9 | . . . 9 Melee . | . . . . Projectile 9 | . . . 9 AOE . | . . . . Terrain Rammed . | . . . . Walls Destroyed . | . . . . Machines Disabled . | . . . . Actions | -11 -10 -10 -10 --------- Run | Yrd Mat Min Sub Total 3670 | 104 853 734 1979 Wait 143 | . 38 70 35 Move 3259 | 76 760 648 1775 Hop . | . . . . Pick Up 31 | 8 9 4 10 Fast Attach 3 | 3 . . . Attach 16 | 4 7 . 5 Detach 3 | 1 1 . 1 Swap 11 | . 3 2 6 Drop 11 | . 3 2 6 Fire 193 | 12 32 8 141 Melee . | . . . . Ram . | . . . . Kick . | . . . . Crush . | . . . . Escape Stasis . | . . . . Rewire . | . . . . Trap . | . . . . Miscellaneous . | . . . . Route ------- -11/Scrapyard -10/Materials (discovered 4 exits: *Mat x3 / *Min) -10/Mines (discovered 3 exits: *Mat x2 / *Sub) -10/Subcaves (discovered 3 exits: *Mat x2 / *Rec) History --------- Turn | Location | Event 2 | -11/Scrapyard | Met Revision 17 5 | -11/Scrapyard | Identified exit to Materials 5 | -11/Scrapyard | Discovered exit to Materials (range 14) 144 | -11/Scrapyard | Entered Materials 144 | -10/Materials | Evolved 1 slot: Utility x1 322 | -10/Materials | Build established: Hacker-Mutant 345 | -10/Materials | Identified exit to Materials 345 | -10/Materials | Discovered exit to Materials (range 7) 593 | -10/Materials | Discovered exit to Materials (range 7) 604 | -10/Materials | Identified exit to Mines 604 | -10/Materials | Discovered exit to Mines (range 14) 1220 | -10/Materials | Discovered exit to Materials (range 11) 1505 | -10/Materials | Entered Mines 1512 | -10/Mines | Learned Materials stockpile data 1796 | -10/Mines | Learned location of Zion (-6) 2071 | -10/Mines | Discovered exit to Materials (range 8) 2191 | -10/Mines | Assisted by bots powering up and referring to "LRC-V3" 2208 | -10/Mines | Discovered exit to Materials (range 5) 2456 | -10/Mines | Identified exit to Subcaves 2456 | -10/Mines | Discovered exit to Subcaves (range 9) 2644 | -10/Mines | Entered Subcaves 2644 | -10/Subcaves | Accompanied by 3 allies 2645 | -10/Subcaves | Approached by a straggling Scientist 2693 | -10/Subcaves | Disturbed a concealed Subdweller 2781 | -10/Subcaves | A swath of the cavern ceiling suddenly collapsed 2846 | -10/Subcaves | Shifting Twisted Machinery released Sub. Machine Gun 2863 | -10/Subcaves | Shifting Twisted Machinery released Mak. Light Armor Plating 3069 | -10/Subcaves | Shifting Twisted Machinery released Hvy. Battle Rifle 3072 | -10/Subcaves | Shifting Twisted Machinery released Sub. Machine Gun 3136 | -10/Subcaves | Met a Zionite searching for "candidates" 3253 | -10/Subcaves | Learned Materials trap positions 3732 | -10/Subcaves | Identified exit to Recycling 3732 | -10/Subcaves | Discovered exit to Recycling (range 16) 4222 | -10/Subcaves | Core integrity fell below 50% 4245 | -10/Subcaves | Identified exit to Materials 4245 | -10/Subcaves | Discovered exit to Materials (range 8) 4539 | -10/Subcaves | Visited Clippyterm 5164 | -10/Subcaves | Disturbed a concealed Subdweller 5221 | -10/Subcaves | Discovered exit to Materials (range 9) 5975 | -10/Subcaves | Visited 4L-MR0's lab 6014 | -10/Subcaves | Found Powered Cannon 6163 | -10/Subcaves | Learned Materials garrison access intel 6909 | -10/Subcaves | Core integrity fell below 20% 7480 | -10/Subcaves | A swath of the cavern ceiling suddenly collapsed 7714 | -10/Subcaves | A Subdweller sparked back to life 7714 | -10/Subcaves | A Subdweller sparked back to life 7725 | -10/Subcaves | Destroyed by KR-L7Z(R) with Subdweller Laser Last Messages --------------- 06909_ 29-FZ7(R) destroyed. 06915_ BE-XQG(R) destroyed. 06918_ Acquired 22 matter. 07086_ Acquired 12 matter. 07478_ ECM Suite destroyed. 07480_ 7 Matter crushed. 07480_ 8 Matter crushed. 07480_ Y-45 Defender crushed by falling debris. A swath of the cavern ceiling suddenly collapses. 07489_ Critical hit (Burn: +37). 07495_ Y-45 Defender misfires. 07502_ Heat Sink fried. 07502_ Y-45 Defender destroyed. 07506_ Acquired 11 matter. 07513_ Acquired 17 matter. 07714_ KR-L7Z(R) creaks and sparks as it begins to move. 07714_ 0N-LC8(R) creaks and sparks as it begins to move. Map ----- +----------------------------------------------------+ | | | | | ?????????????????????????????????????????????????? | | ?????????????????????????????????????????????????? | | ?????????????????????????????????????????????????? | | ?????????????????????????????????????????????????? | | ?????????????????????????????????????????????????? | | ?????????????????????????????????????????????????? | | ?????????????????????????????????????????????????? | | ?????????????????????????????????????????????????? | | ?????????????????????????????????????????????????? | | ?????????????????????????????????????????????????? | | ?????????????????????????????????????????????????? | | ?????????????????????????????????????????????????? | | ?????????????????????????????????????????????????? | | ?????????????????????????????????????????????????? | | ?????????????????????????????????????????????????? | | ?????????????????????????????????????????????????? | | ?????????????????????????????????????????????????? | | ??????????######??????????? #####????????????????? | | ??????????#########????????######????????????????? | | ?????????### #########??## ##????????????????? | | ?????????### # ########## #########?????????? | | ?????????## # #### ##########????????? | | ?????????## " #### ### #####??????? | | ?????????## "# ##@ #####?????? | | ?????????### " ###R ## ?????? | | ??????????####" & ? R ?????? | | ??????????##### ?????? | | ??????????##### #### # ??????? | | ??????????## ####### ## ????????? | | ??????????## ####### #### ## ??????? | | ??????????## ##### #### ; ####??????? | | ??????????## ### #### ;;# ##??????? | | ??????????## ## ####;"" ###?????? | | ??????????## ""#"""#######?????? | | ?????????### #### #"#""#"#""#"##?????? | | #????????## #####;#"#""#"#"""###?????? | | #????????## ##########""#"#""#"##?????? | | #????????## ### #######"####""#""""##??? ?? | | #????????###### #######""#""""#"#"##??? ? | | #????????###### ######"##""""""#"###?? ?? | | #???????????### #####""#"""#"%"##""### ??? | | #???????????## ## "####""####"#### ???? | | ????????????## ??? #"###"%#####""" ???? | | ????????????### ???###"#%#"####"# ????? | | ????????????###### #??####""#""## ##????? | | ?????????????####### #########%###### ##????? | | ?????????????###################"""""## ####### | | ???????#####?## ########## ######""##### ####### | +----------------------------------------------------+ Best States ------------- Heat Dissipation 25 Energy Generation 15 Energy Capacity 265 Matter Stores 300 Matter Capacity 300 Sight Range 16 Robot Scan Range 14 Terrain Scan Density 10 ECM Strength 1 Armor Coverage 150 Resistance: KI 35 Resistance: TH 35 Resistance: EX 35 Resistance: EM 35 Resistance: I 35 Resistance: S 35 Resistance: P 35 Evasion (%) 50 Recoil Reduction 2 Offensive Hacking 20 Item Schematics ----------------- None Robot Schematics ------------------ None Fabricated ------------ Nothing Repaired ---------- Nothing Studied --------- None Alien Tech Used ----------------- None Achievements -------------- None Challenges ------------ None Game ------ Seed ReactionSchematicRail Manual? 0 Play Time 00:21:51 Cumulative 219.9 hours Start 2025.12.22 @ 14:09:33 End 2025.12.22 @ 14:29:08 Sessions 1 Manual Loads 0 Difficulty Explorer Special Mode None Game No. 332 Rogue 0 Adventurer 0 Explorer 332 Win Type - Total 0 Types 0/0/0/0/0/0/0/0/0/0 Lore% 71 Gallery% 68 Achievement% 53 Wizard Run 0 Options --------- Layout 1 ASCII 0 Keyboard 0 Movement Mouse Keybinds 0 Fullscreen 1 Font 24/Smallcaps Map View 50x35 Zoom Use 0% Tactical HUD 1 Map Filters NONE Filters NONE Steam 1 RUN: cbeafe2d-e297-4225-9998-031e64ef43e7